lending/lending_fUSD_20251116
["ID","MTS","AMOUNT","RATE_DAILY","PERIOD"]
[394115090,1763304638431,-151.0,0.00017989,2]
[394115091,1763304638440,-151.0,0.00017989,2]
[394115092,1763304638450,-151.0,0.00017989,2]
[394115093,1763304638460,-151.0,0.00017989,2]
[394115094,1763304638471,-151.0,0.00017989,2]
[394115095,1763304638481,-151.0,0.00017989,2]
[394115096,1763304638490,-151.0,0.00017989,2]
[394115097,1763304638500,-151.0,0.00017989,2]
[394115098,1763304638509,-151.0,0.00017989,2]
[394115099,1763304638519,-151.0,0.00017989,2]
[394115100,1763304638529,-151.0,0.00017989,2]
[394115101,1763304638538,-151.0,0.00017989,2]
[394115102,1763304638547,-151.0,0.00017989,2]
[394115103,1763304638557,-151.0,0.00017989,2]
[394115104,1763304638566,-151.0,0.00017989,2]
[394115105,1763304638576,-151.0,0.00017989,2]
[394115106,1763304638586,-151.0,0.00017989,2]
[394115107,1763304638596,-151.0,0.00017989,2]
[394115108,1763304638606,-151.0,0.00017989,2]
[394115109,1763304638615,-151.0,0.00017989,2]
[394115110,1763304638625,-151.0,0.00017989,2]
[394115111,1763304638635,-151.0,0.00017989,2]
[394115112,1763304638644,-684.50321925,0.0001799,2]
[394115113,1763304638653,-151.0,0.00017997,2]
[394115114,1763304638663,-384.75285696,0.00017999,2]
[394115115,1763304638672,-500.0,0.00017999,2]
[394115116,1763304638683,-336.03492657,0.00017999,2]
[394115117,1763304638694,-500.0,0.00017999,2]
[394115118,1763304638705,-324.36117358,0.00017999,2]
[394115119,1763304638715,-500.0,0.00017999,2]
[394115120,1763304638725,-296.57165391,0.00017999,2]
[394115121,1763304638735,-622.9,0.00017999,2]
[394115122,1763304638745,-556.26650762,0.00017999,2]
[394115123,1763304638755,-300.0,0.00017999,2]
[394115124,1763304638765,-300.0,0.00017999,2]
[394115125,1763304638776,-440.20252509,0.00017999,2]
[394115126,1763304638786,-300.0,0.00017999,2]
[394115127,1763304638795,-300.0,0.00017999,2]
[394115128,1763304638806,-166.96052108,0.00017999,2]
[394115129,1763304638815,-500.0,0.00017999,2]
[394115130,1763304638825,-393.22369148,0.00017999,2]
[394115131,1763304638835,-291.99669146,0.00017999,2]
[394115132,1763304638844,-289.23278284,0.00017999,2]
[394115133,1763304638854,-150.0,0.00017999,2]
[394115134,1763304638864,-1122499.57986594,0.00018,2]
[394115135,1763304638875,-14091.3993412,0.00018,2]
[394115136,1763304638886,-1128.2235758,0.00018,2]
[394115137,1763304638896,-157.3356724,0.00018,2]
[394115138,1763304638906,-747.26606,0.00018,2]
[394115139,1763304638915,-1204.69,0.00018027,2]
[394115140,1763304638925,-1208.37,0.00018027,2]
[394115141,1763304638935,-478.16,0.00018054,2]
[394115142,1763304638947,-1000.0,0.00018082,2]
[394115143,1763304638956,-700.06,0.000181,2]
[394115144,1763304638966,-540.29,0.000181,2]
[394115145,1763304638976,-166.66,0.00018171,2]
[394115146,1763304638986,-700.06,0.000182,2]
[394115147,1763304638995,-715.74,0.000182,2]
[394115148,1763304639005,-700.06,0.000182,2]
[394115149,1763304639015,-700.06,0.000182,2]
[394115150,1763304639024,-485.69,0.000182,2]
[394115151,1763304639034,-747.26607,0.0001823,2]
[394115152,1763304639043,-200.0,0.00018264,2]
[394115153,1763304639053,-150.0,0.00018321,2]
[394115154,1763304639063,-150.0,0.00018321,2]
[394115155,1763304639072,-1208.37,0.00018368,2]
[394115156,1763304639083,-852.9,0.00018392,2]
[394115157,1763304639092,-917.62,0.000184,7]
[394115158,1763304639102,-2000.0,0.000184,2]
[394115159,1763304639112,-1208.37,0.00018468,2]
[394115160,1763304639121,-166.66,0.00018546,2]
[394115161,1763304639130,-195.0,0.00018657,2]
[394115162,1763304639140,-250.0,0.00018657,2]
[394115163,1763304639149,-150.0,0.00018707,2]
[394115164,1763304639159,-747.26606,0.0001873,2]
[394115165,1763304639168,-6748.0,0.00018731,2]
[394115166,1763304639178,-167.76,0.00018745,2]
[394115167,1763304639188,-1000.0,0.0001876,2]
[394115168,1763304639198,-150.39,0.000188,2]
[394115169,1763304639208,-150.39,0.000188,2]
[394115170,1763304639219,-150.39,0.000188,2]
[394115171,1763304639228,-150.39,0.000188,2]
[394115172,1763304639237,-150.39,0.000188,2]
[394115173,1763304639247,-150.39,0.000188,2]
[394115174,1763304639256,-150.39,0.000188,2]
[394115175,1763304639265,-150.39,0.000188,2]
[394115176,1763304639274,-150.39,0.000188,2]
[394115177,1763304639283,-150.39,0.000188,2]
[394115178,1763304639293,-150.39,0.000188,2]
[394115179,1763304639302,-150.39,0.000188,2]
[394115180,1763304639312,-150.39,0.000188,2]
[394115181,1763304639321,-351.98,0.00018849,2]
[394115182,1763304639331,-1000.0,0.00018872,2]
[394115183,1763304639341,-700.06,0.00018882,2]
[394115184,1763304639350,-166.66,0.0001892,2]
[394115185,1763304639360,-4659.34996822,0.00019,2]
[394115186,1763304639370,-700.06,0.00019012,2]
[394115187,1763304639379,-700.06,0.00019012,2]
[394115188,1763304639389,-2450.94116447,0.00019092,2]
[394115189,1763304639398,-151.0,0.00019123,2]
[394115190,1763304639407,-151.0,0.00019123,2]
[394115191,1763304639416,-151.0,0.00019123,2]
[394115192,1763304639425,-151.0,0.00019123,2]
[394115193,1763304639435,-151.0,0.00019123,2]
[394115194,1763304639445,-156.693005,0.00019123,2]
[394115195,1763304639454,-156.089534,0.00019123,2]
[394115196,1763304639464,-151.0,0.00019123,2]
[394115197,1763304639474,-151.0,0.00019123,2]
[394115198,1763304639483,-151.0,0.00019123,2]
[394115199,1763304639494,-151.0,0.00019123,2]
[394115200,1763304639503,-644.308463,0.00019123,2]
[394115201,1763304639514,-644.308463,0.00019123,2]
[394115202,1763304639525,-151.0,0.00019123,2]
[394115203,1763304639535,-151.0,0.00019123,2]
[394115204,1763304639545,-644.308463,0.00019123,2]
[394115205,1763304639555,-151.0,0.00019123,2]
[394115206,1763304639566,-151.0,0.00019123,2]
[394115207,1763304639576,-644.308463,0.00019123,2]
[394115208,1763304639585,-151.0,0.00019123,2]
[394115209,1763304639595,-151.0,0.00019123,2]
[394115210,1763304639605,-29561.0,0.00019123,2]
[394115211,1763304639615,-150.39,0.00019148,2]
[394115212,1763304639624,-300.0,0.00019157,2]
[394115213,1763304639634,-300.0,0.00019157,2]
[394115214,1763304639643,-500.0,0.00019158,2]
[394115215,1763304639652,-514.83,0.00019158,2]
[394115216,1763304639661,-500.0,0.00019158,2]
[394115217,1763304639671,-1085.0,0.00019158,2]
[394115218,1763304639680,-500.0,0.00019158,2]
[394115219,1763304639693,-500.0,0.00019158,2]
[394115220,1763304639703,-500.0,0.00019158,2]
[394115221,1763304639713,-500.0,0.00019158,2]
[394115222,1763304639722,-150.0,0.00019158,2]
[394115223,1763304639732,-528.0,0.00019158,2]
[394115224,1763304639743,-1466.0,0.00019158,2]
[394115225,1763304639753,-500.0,0.00019158,2]
[394115226,1763304639762,-150.0,0.00019158,2]
[394115227,1763304639773,-500.0,0.00019158,2]
[394115228,1763304639783,-150.0,0.00019158,2]
[394115229,1763304639793,-500.0,0.00019158,2]
[394115230,1763304639802,-500.0,0.00019158,2]
[394115231,1763304639811,-500.0,0.00019158,2]
[394115232,1763304639821,-500.0,0.00019158,2]
[394115233,1763304639830,-500.0,0.00019158,2]
[394115234,1763304639839,-500.0,0.00019158,2]
[394115235,1763304639848,-500.0,0.00019158,2]
[394115236,1763304639858,-500.0,0.00019158,2]
[394115237,1763304639867,-500.0,0.00019158,2]
[394115238,1763304639877,-500.0,0.00019158,2]
[394115239,1763304639887,-500.0,0.00019158,2]
[394115240,1763304639896,-211.95611934,0.00019158,2]
[394115241,1763304639906,-500.0,0.00019158,2]
[394115242,1763304639915,-500.0,0.00019158,2]
[394115243,1763304639924,-500.0,0.00019158,2]
[394115244,1763304639934,-500.0,0.00019158,2]
[394115245,1763304639943,-150.0,0.00019158,2]
[394115246,1763304639953,-500.0,0.00019158,2]
[394115247,1763304639962,-500.0,0.00019158,2]
[394115248,1763304639972,-500.0,0.00019158,2]
[394115249,1763304639981,-500.0,0.00019158,2]
[394115250,1763304639990,-500.0,0.00019158,2]
[394115251,1763304640001,-150.0,0.00019158,2]
[394115252,1763304640010,-500.0,0.00019158,2]
[394115253,1763304640019,-150.0,0.00019158,2]
[394115254,1763304640029,-500.0,0.00019158,2]
[394115255,1763304640038,-150.0,0.00019158,2]
[394115256,1763304640047,-736.0,0.00019158,2]
[394115257,1763304640056,-500.0,0.00019158,2]
[394115258,1763304640065,-500.0,0.00019158,2]
[394115259,1763304640075,-163.27613386,0.00019158,2]
[394115260,1763304640084,-500.0,0.00019158,2]
[394115261,1763304640093,-150.0,0.00019158,2]
[394115262,1763304640103,-500.0,0.00019158,2]
[394115263,1763304640112,-628.0,0.00019158,2]
[394115264,1763304640121,-150.0,0.00019158,2]
[394115265,1763304640131,-500.0,0.00019158,2]
[394115266,1763304640141,-150.0,0.00019158,2]
[394115267,1763304640150,-151.0,0.00019178,2]
[394115268,1763304640159,-150.39,0.00019203,2]
[394115269,1763304640169,-300.0,0.00019212,2]
[394115270,1763304640178,-500.0,0.00019213,2]
[394115271,1763304640188,-500.0,0.00019213,2]
[394115272,1763304640198,-1085.0,0.00019213,2]
[394115273,1763304640208,-500.0,0.00019213,2]
[394115274,1763304640217,-500.0,0.00019213,2]
[394115275,1763304640227,-500.0,0.00019213,2]
[394115276,1763304640236,-500.0,0.00019213,2]
[394115277,1763304640245,-150.0,0.00019213,2]
[394115278,1763304640255,-528.0,0.00019213,2]
[394115279,1763304640264,-1466.0,0.00019213,2]
[394115280,1763304640274,-500.0,0.00019213,2]
[394115281,1763304640283,-150.0,0.00019213,2]
[394115282,1763304640293,-500.0,0.00019213,2]
[394115283,1763304640302,-150.0,0.00019213,2]
[394115284,1763304640312,-500.0,0.00019213,2]
[394115285,1763304640321,-500.0,0.00019213,2]
[394115286,1763304640331,-500.0,0.00019213,2]
[394115287,1763304640340,-500.0,0.00019213,2]
[394115288,1763304640350,-500.0,0.00019213,2]
[394115289,1763304640359,-157.93408011,0.00019213,2]
[394115290,1763304640369,-500.0,0.00019213,2]
[394115291,1763304640378,-500.0,0.00019213,2]
[394115292,1763304640388,-500.0,0.00019213,2]
[394115293,1763304640397,-500.0,0.00019213,2]
[394115294,1763304640406,-500.0,0.00019213,2]
[394115295,1763304640416,-150.77075567,0.00019213,2]
[394115296,1763304640425,-500.0,0.00019213,2]
[394115297,1763304640434,-155.570239,0.00019213,2]
[394115298,1763304640444,-500.0,0.00019213,2]
[394115299,1763304640453,-150.0,0.00019213,2]
[394115300,1763304640462,-736.0,0.00019213,2]
[394115301,1763304640471,-500.0,0.00019213,2]
[394115302,1763304640480,-500.0,0.00019213,2]
[394115303,1763304640490,-500.0,0.00019213,2]
[394115305,1763304640652,-500.0,0.00019213,2]
[394115306,1763304640663,-628.0,0.00019213,2]
[394115307,1763304640673,-500.0,0.00019213,2]
[394115308,1763304640682,-151.0,0.00019213,2]
[394115309,1763304640695,-151.0,0.00019213,2]
[394115310,1763304640705,-151.0,0.00019213,2]
[394115311,1763304640714,-151.0,0.00019213,2]
[394115312,1763304640723,-151.0,0.00019213,2]
[394115313,1763304640733,-151.0,0.00019213,2]
[394115314,1763304640743,-151.0,0.00019213,2]
[394115315,1763304640752,-151.0,0.00019213,2]
[394115316,1763304640762,-151.0,0.00019213,2]
[394115317,1763304640773,-151.0,0.00019213,2]
[394115318,1763304640783,-151.0,0.00019213,2]
[394115319,1763304640792,-151.0,0.00019213,2]
[394115320,1763304640802,-151.0,0.00019213,2]
[394115321,1763304640811,-151.0,0.00019213,2]
[394115322,1763304640820,-157.438422,0.00019213,2]
[394115323,1763304640829,-151.0,0.00019213,2]
[394115324,1763304640839,-157.438422,0.00019213,2]
[394115325,1763304640849,-151.0,0.00019213,2]
[394115326,1763304640858,-151.0,0.00019213,2]
[394115327,1763304640867,-157.438422,0.00019213,2]
[394115328,1763304640877,-151.0,0.00019213,2]
[394115329,1763304640886,-157.438422,0.00019213,2]
[394115330,1763304640896,-151.0,0.00019213,2]
[394115331,1763304640905,-184.808736,0.00019213,2]
[394115332,1763304640915,-151.0,0.00019213,2]
[394115333,1763304640924,-9999.99,0.00019213,2]
[394115334,1763304640933,-151.0,0.00019213,2]
[394115335,1763304640944,-9999.99,0.00019213,2]
[394115336,1763304640953,-151.0,0.00019213,2]
[394115337,1763304640962,-225.770558,0.00019213,2]
[394115338,1763304640972,-151.0,0.00019213,2]
[394115339,1763304640981,-159.659107,0.00019213,2]
[394115340,1763304640991,-151.0,0.00019213,2]
[394115341,1763304641000,-9999.99,0.00019213,2]
[394115342,1763304641009,-151.0,0.00019213,2]
[394115343,1763304641019,-151.0,0.00019213,2]
[394115344,1763304641028,-151.0,0.00019213,2]
[394115345,1763304641037,-9999.99,0.00019213,2]
[394115346,1763304641046,-256.52052,0.00019213,2]
[394115347,1763304641056,-166.116633,0.00019213,2]
[394115348,1763304641065,-256.52052,0.00019213,2]
[394115349,1763304641074,-256.52052,0.00019213,2]
[394115350,1763304641084,-151.0,0.00019213,2]
[394115351,1763304641093,-151.0,0.00019213,2]
[394115352,1763304641102,-1207.925092,0.00019213,2]
[394115353,1763304641112,-256.52052,0.00019213,2]
[394115354,1763304641121,-151.0,0.00019213,2]
[394115355,1763304641130,-282.167892,0.00019213,2]
[394115356,1763304641139,-1207.925092,0.00019213,2]
[394115357,1763304641148,-151.0,0.00019213,2]
[394115358,1763304641157,-151.0,0.00019213,2]
[394115359,1763304641166,-151.0,0.00019213,2]
[394115360,1763304641176,-282.167892,0.00019213,2]
[394115361,1763304641185,-1207.925092,0.00019213,2]
[394115362,1763304641194,-274.660546,0.00019213,2]
[394115363,1763304641203,-282.167892,0.00019213,2]
[394115364,1763304641212,-151.0,0.00019213,2]
[394115365,1763304641221,-1207.925092,0.00019213,2]
[394115366,1763304641231,-249.696658,0.00019213,2]
[394115367,1763304641240,-151.0,0.00019213,2]
[394115368,1763304641249,-282.167892,0.00019213,2]
[394115369,1763304641258,-151.0,0.00019213,2]
[394115370,1763304641269,-249.696658,0.00019213,2]
[394115371,1763304641278,-151.0,0.00019213,2]
[394115372,1763304641287,-249.696658,0.00019213,2]
[394115373,1763304641298,-1344.168458,0.00019213,2]
[394115374,1763304641308,-166.199414,0.00019213,2]
[394115375,1763304641318,-249.696658,0.00019213,2]
[394115376,1763304641327,-1344.168458,0.00019213,2]
[394115377,1763304641336,-151.0,0.00019213,2]
[394115378,1763304641346,-294.464416,0.00019213,2]
[394115379,1763304641356,-1344.168458,0.00019213,2]
[394115380,1763304641366,-1344.168458,0.00019213,2]
[394115381,1763304641376,-294.464416,0.00019213,2]
[394115382,1763304641385,-258.727753,0.00019213,2]
[394115383,1763304641395,-294.464416,0.00019213,2]
[394115384,1763304641405,-160.745587,0.00019213,2]
[394115385,1763304641415,-258.727753,0.00019213,2]
[394115386,1763304641425,-294.464416,0.00019213,2]
[394115387,1763304641434,-151.0,0.00019213,2]
[394115388,1763304641444,-258.727753,0.00019213,2]
[394115389,1763304641454,-151.0,0.00019213,2]
[394115390,1763304641464,-156.325988,0.00019213,2]
[394115391,1763304641475,-258.727753,0.00019213,2]
[394115392,1763304641485,-181.446107,0.00019213,2]
[394115393,1763304641495,-151.0,0.00019213,2]
[394115394,1763304641506,-151.0,0.00019213,2]
[394115395,1763304641516,-151.0,0.00019213,2]
[394115396,1763304641527,-151.0,0.00019213,2]
[394115397,1763304641537,-151.0,0.00019213,2]
[394115398,1763304641547,-151.0,0.00019213,2]
[394115399,1763304641558,-151.0,0.00019213,2]
[394115400,1763304641568,-151.0,0.00019213,2]
[394115401,1763304641577,-151.0,0.00019213,2]
[394115402,1763304641587,-151.0,0.00019213,2]
[394115403,1763304641597,-151.0,0.00019213,2]
[394115404,1763304641606,-155.46606,0.00019213,2]
[394115405,1763304641615,-151.0,0.00019213,2]
[394115406,1763304641625,-151.0,0.00019213,2]
[394115407,1763304641635,-160.155288,0.00019213,2]
[394115408,1763304641646,-160.155288,0.00019213,2]
[394115409,1763304641656,-160.155288,0.00019213,2]
[394115410,1763304641665,-151.0,0.00019213,2]
[394115411,1763304641675,-160.155288,0.00019213,2]
[394115412,1763304641684,-218.557661,0.00019213,2]
[394115413,1763304641696,-151.0,0.00019213,2]
[394115414,1763304641706,-160.155288,0.00019213,2]
[394115415,1763304641715,-160.155288,0.00019213,2]
[394115416,1763304641724,-151.0,0.00019213,2]
[394115417,1763304641734,-151.0,0.00019213,2]
[394115418,1763304641745,-160.155288,0.00019213,2]
[394115419,1763304641754,-160.155288,0.00019213,2]
[394115420,1763304641764,-151.0,0.00019213,2]
[394115421,1763304641775,-151.0,0.00019213,2]
[394115422,1763304641785,-151.0,0.00019213,2]
[394115423,1763304641794,-151.0,0.00019213,2]
[394115424,1763304641803,-151.0,0.00019213,2]
[394115425,1763304641813,-151.0,0.00019213,2]
[394115426,1763304641823,-151.0,0.00019213,2]
[394115427,1763304641833,-151.0,0.00019213,2]
[394115428,1763304641842,-151.0,0.00019213,2]
[394115429,1763304641851,-157.528084,0.00019213,2]
[394115430,1763304641861,-151.0,0.00019213,2]
[394115431,1763304641870,-151.0,0.00019213,2]
[394115432,1763304641879,-190.01175,0.00019213,2]
[394115433,1763304641889,-151.0,0.00019213,2]
[394115434,1763304641899,-151.0,0.00019213,2]
[394115435,1763304641908,-151.0,0.00019213,2]
[394115436,1763304641917,-151.0,0.00019213,2]
[394115437,1763304641926,-151.0,0.00019213,2]
[394115438,1763304641936,-151.0,0.00019213,2]
[394115439,1763304641946,-151.0,0.00019213,2]
[394115440,1763304641955,-151.0,0.00019213,2]
[394115441,1763304641964,-151.0,0.00019213,2]
[394115442,1763304641975,-151.0,0.00019213,2]
[394115443,1763304641984,-151.0,0.00019213,2]
[394115444,1763304641993,-151.0,0.00019213,2]
[394115445,1763304642003,-151.0,0.00019213,2]
[394115446,1763304642013,-151.0,0.00019213,2]
[394115447,1763304642023,-151.0,0.00019213,2]
[394115448,1763304642032,-257.237446,0.00019213,2]
[394115449,1763304642044,-165.515484,0.00019213,2]
[394115450,1763304642055,-644.308463,0.00019213,2]
[394115451,1763304642065,-644.308463,0.00019213,2]
[394115452,1763304642075,-151.0,0.00019213,2]
[394115453,1763304642083,-644.308463,0.00019213,2]
[394115454,1763304642093,-151.0,0.00019213,2]
[394115455,1763304642102,-151.0,0.00019213,2]
[394115456,1763304642112,-644.308463,0.00019213,2]
[394115457,1763304642121,-151.0,0.00019213,2]
[394115458,1763304642131,-151.0,0.00019213,2]
[394115459,1763304642140,-747.26607,0.0001923,2]
[394115460,1763304642150,-833.88,0.00019254,2]
[394115461,1763304642159,-150.0,0.00019256,2]
[394115462,1763304642168,-215.37275004,0.00019268,2]
[394115463,1763304642178,-500.0,0.00019268,2]
[394115464,1763304642187,-1085.0,0.00019268,2]
[394115465,1763304642197,-500.0,0.00019268,2]
[394115466,1763304642206,-500.0,0.00019268,2]
[394115467,1763304642216,-500.0,0.00019268,2]
[394115468,1763304642225,-500.0,0.00019268,2]
[394115469,1763304642234,-150.0,0.00019268,2]
[394115470,1763304642244,-528.0,0.00019268,2]
[394115471,1763304642253,-1466.0,0.00019268,2]
[394115472,1763304642263,-500.0,0.00019268,2]
[394115473,1763304642272,-150.0,0.00019268,2]
[394115474,1763304642281,-500.0,0.00019268,2]
[394115475,1763304642291,-150.0,0.00019268,2]
[394115476,1763304642300,-264.01228564,0.00019268,2]
[394115477,1763304642310,-500.0,0.00019268,2]
[394115478,1763304642319,-500.0,0.00019268,2]
[394115479,1763304642328,-310.17109434,0.00019268,2]
[394115480,1763304642339,-500.0,0.00019268,2]
[394115481,1763304642348,-500.0,0.00019268,2]
[394115482,1763304642357,-500.0,0.00019268,2]
[394115483,1763304642367,-500.0,0.00019268,2]
[394115484,1763304642376,-325.70575154,0.00019268,2]
[394115485,1763304642385,-500.0,0.00019268,2]
[394115486,1763304642395,-384.15160057,0.00019268,2]
[394115487,1763304642404,-500.0,0.00019268,2]
[394115488,1763304642414,-150.0,0.00019268,2]
[394115489,1763304642424,-736.0,0.00019268,2]
[394115490,1763304642434,-500.0,0.00019268,2]
[394115491,1763304642443,-500.0,0.00019268,2]
[394115492,1763304642453,-500.0,0.00019268,2]
[394115493,1763304642463,-500.0,0.00019268,2]
[394115494,1763304642472,-628.0,0.00019268,2]
[394115495,1763304642482,-500.0,0.00019268,2]
[394115496,1763304642492,-166.66,0.00019295,2]
[394115497,1763304642503,-150.39,0.00019312,2]
[394115498,1763304642512,-500.0,0.00019322,2]
[394115499,1763304642522,-1085.0,0.00019322,2]
[394115500,1763304642532,-339.48562485,0.00019322,2]
[394115501,1763304642542,-500.0,0.00019322,2]
[394115502,1763304642551,-500.0,0.00019322,2]
[394115503,1763304642561,-500.0,0.00019322,2]
[394115504,1763304642570,-166.33719638,0.00019322,2]
[394115505,1763304642580,-528.0,0.00019322,2]
[394115507,1763304642590,-1466.0,0.00019322,2]
[394115509,1763304642599,-500.0,0.00019322,2]
[394115511,1763304642608,-150.0,0.00019322,2]
[394115512,1763304642619,-500.0,0.00019322,2]
[394115513,1763304642629,-212.75413196,0.00019322,2]
[394115515,1763304642638,-500.0,0.00019322,2]
[394115517,1763304642649,-500.0,0.00019322,2]
[394115518,1763304642659,-500.0,0.00019322,2]
[394115519,1763304642669,-500.0,0.00019322,2]
[394115520,1763304642679,-500.0,0.00019322,2]
[394115521,1763304642688,-500.0,0.00019322,2]
[394115523,1763304642702,-500.0,0.00019322,2]
[394115525,1763304642712,-500.0,0.00019322,2]
[394115527,1763304642722,-165.93802187,0.00019322,2]
[394115529,1763304642733,-736.0,0.00019322,2]
[394115531,1763304642743,-152.03746472,0.00019322,2]
[394115533,1763304642753,-500.0,0.00019322,2]
[394115535,1763304642764,-500.0,0.00019322,2]
[394115537,1763304642774,-500.0,0.00019322,2]
[394115539,1763304642784,-628.0,0.00019322,2]
[394115541,1763304642794,-500.0,0.00019322,2]
[394115542,1763304642803,-169.1355734,0.00019332,2]
[394115543,1763304642813,-150.0,0.00019338,4]
[394115544,1763304642823,-150.99,0.00019339,2]
[394115545,1763304642833,-239.97,0.00019339,2]
[394115546,1763304642842,-151.0,0.00019364,2]
[394115547,1763304642852,-1207.925092,0.00019364,2]
[394115549,1763304642862,-151.0,0.00019364,2]
[394115551,1763304642871,-282.167892,0.00019364,2]
[394115553,1763304642881,-1207.925092,0.00019364,2]
[394115554,1763304642891,-151.0,0.00019364,2]
[394115555,1763304642902,-221.145144,0.00019364,2]
[394115556,1763304642912,-151.0,0.00019364,2]
[394115557,1763304642921,-282.167892,0.00019364,2]
[394115558,1763304642931,-1207.925092,0.00019364,2]
[394115559,1763304642941,-151.0,0.00019364,2]
[394115560,1763304642951,-282.167892,0.00019364,2]
[394115561,1763304642960,-1207.925092,0.00019364,2]
[394115562,1763304642970,-151.0,0.00019364,2]
[394115563,1763304642979,-282.167892,0.00019364,2]
[394115564,1763304642988,-151.0,0.00019364,2]
[394115565,1763304642997,-1344.168458,0.00019364,2]
[394115566,1763304643006,-1344.168458,0.00019364,2]
[394115567,1763304643015,-1344.168458,0.00019364,2]
[394115568,1763304643024,-1344.168458,0.00019364,2]
[394115569,1763304643034,-258.727753,0.00019364,2]
[394115570,1763304643043,-258.727753,0.00019364,2]
[394115571,1763304643052,-151.0,0.00019364,2]
[394115572,1763304643061,-258.727753,0.00019364,2]
[394115573,1763304643071,-151.0,0.00019364,2]
[394115574,1763304643081,-258.727753,0.00019364,2]
[394115575,1763304643090,-151.0,0.00019364,2]
[394115576,1763304643100,-151.0,0.00019364,2]
[394115577,1763304643109,-270.067644,0.00019364,2]
[394115578,1763304643118,-151.0,0.00019364,2]
[394115579,1763304643128,-151.0,0.00019364,2]
[394115580,1763304643137,-151.0,0.00019364,2]
[394115581,1763304643147,-151.0,0.00019364,2]
[394115582,1763304643157,-151.0,0.00019364,2]
[394115583,1763304643166,-151.0,0.00019364,2]
[394115584,1763304643177,-151.0,0.00019364,2]
[394115585,1763304643186,-151.0,0.00019364,2]
[394115586,1763304643195,-151.0,0.00019364,2]
[394115587,1763304643205,-151.0,0.00019364,2]
[394115588,1763304643214,-151.0,0.00019364,2]
[394115589,1763304643224,-644.308463,0.00019364,2]
[394115590,1763304643233,-644.308463,0.00019364,2]
[394115591,1763304643243,-166.249349,0.00019364,2]
[394115592,1763304643252,-644.308463,0.00019364,2]
[394115593,1763304643261,-151.0,0.00019364,2]
[394115594,1763304643270,-151.0,0.00019364,2]
[394115595,1763304643279,-644.308463,0.00019364,2]
[394115596,1763304643289,-151.0,0.00019364,2]
[394115597,1763304643298,-151.0,0.00019364,2]
[394115598,1763304643308,-478.25,0.0001937,2]
[394115599,1763304643317,-478.25,0.0001937,2]
[394115600,1763304643327,-478.25,0.0001937,2]
[394115601,1763304643336,-478.25,0.0001937,2]
[394115602,1763304643345,-478.25,0.0001937,2]
[394115603,1763304643354,-967.85,0.0001937,2]
[394115604,1763304643363,-500.0,0.00019377,2]
[394115605,1763304643373,-1085.0,0.00019377,2]
[394115606,1763304643382,-500.0,0.00019377,2]
[394115607,1763304643391,-500.0,0.00019377,2]
[394115608,1763304643401,-500.0,0.00019377,2]